fUSD/lending_fUSD_20250414
["ID","MTS","AMOUNT","RATE_DAILY","PERIOD"]
[357952237,1744614641729,-500.0,0.00019178,2]
[357952239,1744614641739,-500.0,0.00019178,2]
[357952241,1744614641749,-500.0,0.00019178,2]
[357952243,1744614641759,-500.0,0.00019178,2]
[357952245,1744614641770,-500.0,0.00019178,2]
[357952247,1744614641781,-690.9,0.00019178,2]
[357952249,1744614641791,-153.56680105,0.00019178,2]
[357952251,1744614641801,-500.0,0.00019178,2]
[357952253,1744614641811,-500.0,0.00019178,2]
[357952255,1744614641821,-500.0,0.00019178,2]
[357952257,1744614641831,-281.65549106,0.00019178,2]
[357952258,1744614641840,-500.0,0.00019178,2]
[357952260,1744614641849,-500.0,0.00019178,2]
[357952262,1744614641859,-500.0,0.00019178,2]
[357952264,1744614641868,-500.0,0.00019178,2]
[357952266,1744614641878,-500.0,0.00019178,2]
[357952268,1744614641888,-500.0,0.00019178,2]
[357952270,1744614641897,-500.0,0.00019178,2]
[357952272,1744614641905,-578.31,0.00019178,2]
[357952274,1744614641914,-525.94,0.00019178,2]
[357952276,1744614641924,-500.0,0.00019178,2]
[357952278,1744614641934,-500.0,0.00019178,2]
[357952280,1744614641944,-500.0,0.00019178,2]
[357952282,1744614641954,-500.0,0.00019178,2]
[357952284,1744614641963,-500.0,0.00019178,2]
[357952286,1744614641973,-500.0,0.00019178,2]
[357952288,1744614641982,-500.0,0.00019178,2]
[357952289,1744614641992,-500.0,0.00019178,2]
[357952292,1744614642001,-643.41,0.00019178,2]
[357952294,1744614642011,-500.0,0.00019178,2]
[357952295,1744614642020,-500.0,0.00019178,2]
[357952298,1744614642031,-500.0,0.00019178,2]
[357952299,1744614642040,-500.0,0.00019178,2]
[357952301,1744614642050,-500.0,0.00019178,2]
[357952303,1744614642060,-500.0,0.00019178,2]
[357952305,1744614642070,-500.0,0.00019178,2]
[357952307,1744614642080,-500.0,0.00019178,2]
[357952309,1744614642089,-817.72,0.00019178,2]
[357952311,1744614642099,-500.0,0.00019178,2]
[357952313,1744614642109,-500.0,0.00019178,2]
[357952315,1744614642119,-510.85147457,0.00019178,2]
[357952317,1744614642129,-500.0,0.00019178,2]
[357952319,1744614642139,-500.0,0.00019178,2]
[357952321,1744614642149,-576.5,0.00019178,2]
[357952323,1744614642159,-500.0,0.00019178,2]
[357952325,1744614642170,-500.0,0.00019178,2]
[357952327,1744614642180,-564.15457991,0.00019178,2]
[357952329,1744614642190,-500.0,0.00019178,2]
[357952331,1744614642199,-48521.41,0.00019178,2]
[357952333,1744614642209,-1000.0,0.00019178,2]
[357952335,1744614642218,-500.0,0.00019178,2]
[357952337,1744614642228,-500.0,0.00019178,2]
[357952339,1744614642238,-327.80817885,0.00019178,2]
[357952341,1744614642248,-500.0,0.00019178,2]
[357952343,1744614642258,-500.0,0.00019178,2]
[357952345,1744614642268,-500.0,0.00019178,2]
[357952347,1744614642277,-588.44,0.00019178,2]
[357952349,1744614642287,-500.0,0.00019178,2]
[357952351,1744614642297,-533.56244164,0.00019178,2]
[357952353,1744614642307,-500.0,0.00019178,2]
[357952355,1744614642316,-500.0,0.00019178,2]
[357952356,1744614642325,-500.0,0.00019178,2]
[357952359,1744614642335,-500.0,0.00019178,2]
[357952360,1744614642344,-500.0,0.00019178,2]
[357952362,1744614642354,-1620.01,0.00019178,2]
[357952364,1744614642363,-500.0,0.00019178,2]
[357952366,1744614642373,-500.0,0.00019178,2]
[357952368,1744614642382,-500.0,0.00019178,2]
[357952370,1744614642395,-500.0,0.00019178,2]
[357952372,1744614642405,-500.0,0.00019178,2]
[357952374,1744614642415,-500.0,0.00019178,2]
[357952377,1744614642426,-530.17100391,0.00019178,2]
[357952379,1744614642436,-500.0,0.00019178,2]
[357952381,1744614642446,-500.0,0.00019178,2]
[357952383,1744614642456,-500.0,0.00019178,2]
[357952384,1744614642466,-500.0,0.00019178,2]
[357952386,1744614642476,-500.0,0.00019178,2]
[357952388,1744614642492,-500.0,0.00019178,2]
[357952390,1744614642501,-500.0,0.00019178,2]
[357952392,1744614642511,-500.0,0.00019178,2]
[357952394,1744614642521,-500.0,0.00019178,2]
[357952396,1744614642531,-500.0,0.00019178,2]
[357952398,1744614642541,-500.0,0.00019178,2]
[357952400,1744614642550,-500.0,0.00019178,2]
[357952402,1744614642560,-500.0,0.00019178,2]
[357952404,1744614642570,-500.0,0.00019178,2]
[357952406,1744614642580,-500.0,0.00019178,2]
[357952408,1744614642589,-500.0,0.00019178,2]
[357952410,1744614642599,-500.0,0.00019178,2]
[357952412,1744614642609,-500.0,0.00019178,2]
[357952414,1744614642619,-500.0,0.00019178,2]
[357952416,1744614642628,-574.67073642,0.00019178,2]
[357952418,1744614642638,-500.0,0.00019178,2]
[357952420,1744614642648,-1088.87,0.00019178,2]
[357952422,1744614642659,-500.0,0.00019178,2]
[357952424,1744614642669,-500.0,0.00019178,2]
[357952426,1744614642679,-557.98533638,0.00019178,2]
[357952428,1744614642688,-500.0,0.00019178,2]
[357952430,1744614642698,-500.0,0.00019178,2]
[357952432,1744614642707,-500.0,0.00019178,2]
[357952434,1744614642718,-525.3,0.00019178,2]
[357952436,1744614642727,-500.0,0.00019178,2]
[357952438,1744614642737,-500.0,0.00019178,2]
[357952440,1744614642747,-500.0,0.00019178,2]
[357952441,1744614642756,-458.98197,0.00019178,2]
[357952444,1744614642766,-500.0,0.00019178,2]
[357952446,1744614642776,-596.69,0.00019178,2]
[357952448,1744614642785,-500.0,0.00019178,2]
[357952449,1744614642796,-500.0,0.00019178,2]
[357952451,1744614642806,-500.0,0.00019178,2]
[357952453,1744614642815,-500.0,0.00019178,2]
[357952455,1744614642825,-500.0,0.00019178,2]
[357952457,1744614642835,-500.0,0.00019178,2]
[357952458,1744614642845,-500.0,0.00019178,2]
[357952460,1744614642855,-500.0,0.00019178,2]
[357952463,1744614642865,-500.27,0.00019178,2]
[357952465,1744614642875,-500.0,0.00019178,2]
[357952466,1744614642884,-500.0,0.00019178,2]
[357952468,1744614642893,-627.33,0.00019178,2]
[357952470,1744614642904,-500.0,0.00019178,2]
[357952472,1744614642913,-500.0,0.00019178,2]
[357952474,1744614642923,-194.49623255,0.00019178,2]
[357952476,1744614642933,-500.0,0.00019178,2]
[357952478,1744614642943,-500.0,0.00019178,2]
[357952480,1744614642953,-500.0,0.00019178,2]
[357952482,1744614642962,-500.0,0.00019178,2]
[357952484,1744614642972,-500.0,0.00019178,2]
[357952486,1744614642982,-844.8,0.00019178,2]
[357952488,1744614642992,-500.0,0.00019178,2]
[357952490,1744614643002,-510.22289278,0.00019178,2]
[357952492,1744614643012,-534.27,0.00019178,2]
[357952494,1744614643023,-500.0,0.00019178,2]
[357952496,1744614643032,-500.0,0.00019178,2]
[357952498,1744614643043,-500.0,0.00019178,2]
[357952500,1744614643053,-500.0,0.00019178,2]
[357952502,1744614643063,-500.0,0.00019178,2]
[357952504,1744614643072,-626.93,0.00019178,2]
[357952506,1744614643082,-500.0,0.00019178,2]
[357952509,1744614643100,-500.0,0.00019178,2]
[357952511,1744614643111,-435.39932988,0.00019178,2]
[357952513,1744614643121,-473.11574354,0.00019178,2]
[357952515,1744614643131,-713.21,0.00019178,2]
[357952517,1744614643140,-500.0,0.00019178,2]
[357952519,1744614643150,-500.0,0.00019178,2]
[357952521,1744614643160,-566.56403101,0.00019178,2]
[357952523,1744614643170,-500.0,0.00019178,2]
[357952525,1744614643180,-500.0,0.00019178,2]
[357952527,1744614643189,-500.0,0.00019178,2]
[357952529,1744614643200,-500.0,0.00019178,2]
[357952531,1744614643210,-500.0,0.00019178,2]
[357952533,1744614643221,-500.0,0.00019178,2]
[357952535,1744614643231,-500.0,0.00019178,2]
[357952537,1744614643240,-500.0,0.00019178,2]
[357952539,1744614643250,-500.0,0.00019178,2]
[357952541,1744614643260,-500.0,0.00019178,2]
[357952543,1744614643270,-500.0,0.00019178,2]
[357952544,1744614643280,-500.0,0.00019178,2]
[357952545,1744614643289,-500.0,0.00019178,2]
[357952546,1744614643299,-583.88,0.00019178,2]
[357952547,1744614643308,-634.57930752,0.00019178,2]
[357952548,1744614643317,-564.63,0.00019178,2]
[357952549,1744614643327,-500.0,0.00019178,2]
[357952550,1744614643337,-583.46049528,0.00019178,2]
[357952551,1744614643346,-500.0,0.00019178,2]
[357952552,1744614643356,-500.0,0.00019178,2]
[357952553,1744614643365,-449.40300863,0.00019178,2]
[357952554,1744614643374,-2000.0,0.00019178,2]
[357952555,1744614643384,-506.08985092,0.00019178,2]
[357952556,1744614643397,-538.43,0.00019178,2]
[357952557,1744614643407,-501.0,0.00019178,2]
[357952559,1744614643417,-500.0,0.00019178,2]
[357952561,1744614643427,-543.20853263,0.00019178,2]
[357952563,1744614643438,-500.0,0.00019178,2]
[357952565,1744614643447,-500.0,0.00019178,2]
[357952567,1744614643456,-500.0,0.00019178,2]
[357952569,1744614643465,-535.58,0.00019178,2]
[357952572,1744614643478,-500.0,0.00019178,2]
[357952575,1744614643489,-500.0,0.00019178,2]
[357952578,1744614643498,-500.0,0.00019178,2]
[357952581,1744614643508,-500.0,0.00019178,2]
[357952583,1744614643518,-500.0,0.00019178,2]
[357952585,1744614643528,-500.0,0.00019178,2]
[357952587,1744614643537,-574.25205202,0.00019178,2]
[357952590,1744614643547,-500.0,0.00019178,2]
[357952593,1744614643558,-500.0,0.00019178,2]
[357952596,1744614643568,-500.0,0.00019178,2]
[357952599,1744614643577,-500.0,0.00019178,2]
[357952602,1744614643587,-169.38,0.00019223,2]
[357952605,1744614643596,-500.0,0.00019233,2]
[357952608,1744614643606,-3288.7995763,0.00019261,2]
[357952611,1744614643616,-220.65815103,0.00019263,2]
[357952614,1744614643626,-160.47,0.00019278,2]
[357952616,1744614643637,-500.19849729,0.00019284,2]
[357952618,1744614643646,-500.0,0.00019288,2]
[357952620,1744614643656,-500.0,0.00019342,2]
[357952622,1744614643666,-3288.7995763,0.00019352,2]
[357952624,1744614643676,-500.0,0.0001936,2]
[357952626,1744614643685,-420.90760717,0.00019374,2]
[357952628,1744614643695,-500.0,0.00019397,2]
[357952630,1744614643705,-3288.7995763,0.00019443,2]
[357952632,1744614643715,-11827.19050939,0.00019445,2]
[357952634,1744614643725,-500.0,0.00019451,2]
[357952653,1744614643919,-500.0,0.00019452,2]
[357952655,1744614643929,-500.0,0.00019452,2]
[357952657,1744614643939,-500.0,0.00019452,2]
[357952659,1744614643948,-500.0,0.00019452,2]
[357952661,1744614643957,-500.0,0.00019452,2]
[357952663,1744614643967,-517.15481435,0.00019452,2]
[357952665,1744614643976,-500.0,0.00019452,2]
[357952667,1744614643987,-500.0,0.00019452,2]
[357952669,1744614643997,-500.0,0.00019452,2]
[357952671,1744614644007,-500.0,0.00019452,2]
[357952673,1744614644016,-523.22012514,0.00019452,2]
[357952674,1744614644029,-524.88,0.00019452,2]
[357952676,1744614644039,-587.01,0.00019452,2]
[357952678,1744614644051,-525.62,0.00019452,2]
[357952680,1744614644061,-488.41394082,0.00019452,2]
[357952682,1744614644071,-500.0,0.00019452,2]
[357952684,1744614644081,-506.21047242,0.00019452,2]
[357952686,1744614644090,-527.29652501,0.00019452,2]
[357952688,1744614644100,-605.12,0.00019452,2]
[357952690,1744614644110,-517.23429497,0.00019452,2]
[357952692,1744614644120,-517.0519103,0.00019452,2]
[357952694,1744614644130,-272.43781079,0.00019452,2]
[357952696,1744614644139,-582.1,0.00019452,2]
[357952698,1744614644149,-623.94551059,0.00019452,2]
[357952700,1744614644158,-580.09541451,0.00019452,2]
[357952702,1744614644167,-572.5727802,0.00019452,2]
[357952704,1744614644177,-529.83633033,0.00019452,2]
[357952706,1744614644186,-500.0,0.00019452,2]
[357952707,1744614644196,-500.0,0.00019452,2]
[357952709,1744614644206,-500.0,0.00019452,2]
[357952711,1744614644215,-500.0,0.00019452,2]
[357952713,1744614644224,-1371.31,0.00019452,2]
[357952715,1744614644234,-520.44644082,0.00019452,2]
[357952717,1744614644243,-500.0,0.00019452,2]
[357952719,1744614644252,-500.0,0.00019452,2]
[357952721,1744614644261,-500.0,0.00019452,2]
[357952723,1744614644271,-279.88,0.00019452,2]
[357952725,1744614644280,-500.0,0.00019452,2]
[357952727,1744614644292,-500.0,0.00019452,2]
[357952729,1744614644301,-500.0,0.00019452,2]
[357952731,1744614644311,-459.6,0.00019452,2]
[357952733,1744614644320,-500.0,0.00019452,2]
[357952735,1744614644330,-500.0,0.00019452,2]
[357952737,1744614644339,-500.0,0.00019452,2]
[357952739,1744614644348,-500.0,0.00019452,2]
[357952741,1744614644358,-500.0,0.00019452,2]
[357952742,1744614644367,-500.0,0.00019452,2]
[357952744,1744614644376,-500.0,0.00019452,2]
[357952746,1744614644385,-500.0,0.00019452,2]
[357952748,1744614644398,-500.0,0.00019452,2]
[357952750,1744614644408,-254.51,0.00019452,2]
[357952752,1744614644418,-557.2,0.00019452,2]
[357952754,1744614644428,-500.0,0.00019452,2]
[357952756,1744614644438,-500.0,0.00019452,2]
[357952758,1744614644447,-500.0,0.00019452,2]
[357952760,1744614644456,-500.0,0.00019452,2]
[357952761,1744614644465,-504.3,0.00019452,2]
[357952763,1744614644475,-332.98,0.00019452,2]
[357952765,1744614644485,-500.0,0.00019452,2]
[357952767,1744614644494,-351.23,0.00019452,2]
[357952769,1744614644504,-500.0,0.00019452,2]
[357952771,1744614644514,-500.0,0.00019452,2]
[357952773,1744614644524,-373.47178315,0.00019452,2]
[357952775,1744614644534,-500.0,0.00019452,2]
[357952777,1744614644546,-500.0,0.00019452,2]
[357952779,1744614644556,-500.0,0.00019452,2]
[357952781,1744614644567,-499.9959985,0.00019452,2]
[357952783,1744614644581,-500.0,0.00019452,2]
[357952785,1744614644591,-500.0,0.00019452,2]
[357952787,1744614644601,-339.23,0.00019452,2]
[357952789,1744614644610,-500.0,0.00019452,2]
[357952791,1744614644620,-558.27,0.00019452,2]
[357952793,1744614644630,-500.0,0.00019452,2]
[357952795,1744614644640,-500.0,0.00019452,2]
[357952797,1744614644650,-500.0,0.00019452,2]
[357952799,1744614644660,-500.0,0.00019452,2]
[357952801,1744614644669,-500.0,0.00019452,2]
[357952803,1744614644678,-500.0,0.00019452,2]
[357952805,1744614644688,-500.0,0.00019452,2]
[357952807,1744614644698,-467.03170554,0.00019452,2]
[357952809,1744614644708,-500.0,0.00019452,2]
[357952811,1744614644718,-500.0,0.00019452,2]
[357952813,1744614644728,-272.73199122,0.00019452,2]
[357952815,1744614644737,-500.0,0.00019452,2]
[357952817,1744614644747,-500.0,0.00019452,2]
[357952819,1744614644757,-500.0,0.00019452,2]
[357952821,1744614644767,-500.0,0.00019452,2]
[357952823,1744614644776,-690.9,0.00019452,2]
[357952825,1744614644786,-500.0,0.00019452,2]
[357952827,1744614644798,-500.0,0.00019452,2]
[357952828,1744614644808,-500.0,0.00019452,2]
[357952830,1744614644817,-502.23446527,0.00019452,2]
[357952832,1744614644827,-500.0,0.00019452,2]
[357952834,1744614644837,-500.0,0.00019452,2]
[357952836,1744614644847,-500.0,0.00019452,2]
[357952838,1744614644856,-500.0,0.00019452,2]
[357952840,1744614644866,-574.49,0.00019452,2]
[357952842,1744614644875,-516.02274912,0.00019452,2]
[357952844,1744614644885,-500.0,0.00019452,2]
[357952846,1744614644895,-500.0,0.00019452,2]
[357952848,1744614644904,-500.0,0.00019452,2]
[357952850,1744614644913,-817.72,0.00019452,2]
[357952852,1744614644924,-624.29253916,0.00019452,2]
[357952854,1744614644934,-576.5,0.00019452,2]
[357952856,1744614644943,-500.0,0.00019452,2]
[357952858,1744614644953,-48521.41,0.00019452,2]
[357952860,1744614644963,-588.44,0.00019452,2]
[357952862,1744614644973,-500.0,0.00019452,2]
[357952864,1744614644983,-500.0,0.00019452,2]
[357952866,1744614644993,-1620.01,0.00019452,2]
[357952868,1744614645002,-500.0,0.00019452,2]
[357952870,1744614645012,-500.0,0.00019452,2]
[357952872,1744614645022,-500.0,0.00019452,2]
[357952874,1744614645031,-500.0,0.00019452,2]
[357952876,1744614645042,-500.0,0.00019452,2]
[357952878,1744614645052,-500.0,0.00019452,2]
[357952880,1744614645062,-500.0,0.00019452,2]
[357952882,1744614645072,-500.0,0.00019452,2]
[357952884,1744614645087,-500.0,0.00019452,2]
[357952886,1744614645097,-500.0,0.00019452,2]
[357952888,1744614645106,-500.0,0.00019452,2]
[357952890,1744614645116,-500.0,0.00019452,2]
[357952891,1744614645125,-500.0,0.00019452,2]
[357952893,1744614645135,-500.0,0.00019452,2]
[357952895,1744614645144,-519.83,0.00019452,2]
[357952897,1744614645155,-500.0,0.00019452,2]
[357952899,1744614645164,-1088.87,0.00019452,2]
[357952901,1744614645173,-500.0,0.00019452,2]
[357952903,1744614645183,-500.0,0.00019452,2]
[357952905,1744614645195,-507.9,0.00019452,2]
[357952907,1744614645205,-589.51667284,0.00019452,2]
[357952909,1744614645215,-500.0,0.00019452,2]
[357952911,1744614645225,-500.0,0.00019452,2]
[357952913,1744614645235,-500.0,0.00019452,2]
[357952915,1744614645244,-500.0,0.00019452,2]
[357952917,1744614645254,-500.0,0.00019452,2]
[357952919,1744614645263,-500.0,0.00019452,2]
[357952921,1744614645273,-500.0,0.00019452,2]
[357952923,1744614645283,-500.0,0.00019452,2]
[357952925,1744614645293,-500.0,0.00019452,2]
[357952927,1744614645302,-500.0,0.00019452,2]
[357952929,1744614645311,-844.8,0.00019452,2]
[357952931,1744614645321,-500.0,0.00019452,2]
[357952933,1744614645331,-534.27,0.00019452,2]
[357952935,1744614645341,-500.0,0.00019452,2]
[357952937,1744614645351,-500.0,0.00019452,2]
[357952939,1744614645361,-626.93,0.00019452,2]
[357952941,1744614645371,-500.0,0.00019452,2]
[357952943,1744614645380,-713.21,0.00019452,2]
[357952945,1744614645393,-500.0,0.00019452,2]
[357952947,1744614645404,-500.0,0.00019452,2]
[357952949,1744614645414,-500.0,0.00019452,2]
[357952951,1744614645424,-500.0,0.00019452,2]
[357952953,1744614645435,-570.80055887,0.00019452,2]
[357952955,1744614645444,-572.6390722,0.00019452,2]
[357952957,1744614645453,-500.0,0.00019452,2]
[357952959,1744614645463,-500.0,0.00019452,2]
[357952961,1744614645474,-500.0,0.00019452,2]
[357952963,1744614645483,-500.0,0.00019452,2]
[357952965,1744614645493,-500.0,0.00019452,2]
[357952967,1744614645502,-500.0,0.00019452,2]
[357952969,1744614645513,-500.0,0.00019452,2]
[357952971,1744614645522,-500.19849729,0.00019489,2]
[357952973,1744614645531,-297.64251163,0.00019497,2]
[357952975,1744614645543,-3288.7995763,0.00019535,2]
[357952978,1744614645553,-387.3289757,0.00019617,2]
[357952980,1744614645562,-2449.2293,0.00019626,2]
[357952982,1744614645571,-1583.40092271,0.00019688,2]
[357952984,1744614645580,-300.0,0.0001969,2]
[357952986,1744614645590,-646.93549482,0.00019691,2]
[357952988,1744614645600,-500.19849729,0.00019695,2]
[357952990,1744614645610,-47897.43986114,0.000197,2]
[357952992,1744614645621,-31217.98264819,0.00019704,2]
[357952994,1744614645631,-362.3720504,0.00019706,2]
[357952996,1744614645641,-13602.31332993,0.00019707,2]
[357952998,1744614645651,-3166.80184535,0.00019717,2]
[357953000,1744614645660,-31217.98264819,0.0001972,2]
[357953002,1744614645670,-646.93549482,0.00019721,2]
[357953004,1744614645680,-2105.97382765,0.00019725,2]
[357953005,1744614645689,-315.46,0.00019726,2]
[357953008,1744614645699,-624.84,0.00019726,2]
[357953009,1744614645708,-242.11,0.00019726,2]
[357953011,1744614645718,-494.89,0.00019726,2]
[357953013,1744614645727,-1371.31,0.00019726,2]
[357953015,1744614645738,-500.0,0.00019726,2]
[357953017,1744614645747,-500.0,0.00019726,2]
[357953019,1744614645757,-500.0,0.00019726,2]
[357953021,1744614645768,-500.0,0.00019726,2]
[357953023,1744614645777,-500.0,0.00019726,2]
[357953024,1744614645787,-500.0,0.00019726,2]
[357953026,1744614645802,-500.0,0.00019726,2]
[357953029,1744614645812,-500.0,0.00019726,2]
[357953031,1744614645821,-500.0,0.00019726,2]
[357953033,1744614645831,-500.0,0.00019726,2]
[357953035,1744614645842,-500.0,0.00019726,2]
[357953037,1744614645852,-500.0,0.00019726,2]
[357953039,1744614645862,-500.0,0.00019726,2]
[357953040,1744614645873,-500.0,0.00019726,2]
[357953042,1744614645883,-500.0,0.00019726,2]
[357953045,1744614645894,-266.7,0.00019726,2]
[357953046,1744614645905,-500.0,0.00019726,2]
[357953048,1744614645915,-262.46,0.00019726,2]
[357953050,1744614645924,-504.3,0.00019726,2]
[357953052,1744614645935,-181.52,0.00019726,2]
[357953054,1744614645945,-500.0,0.00019726,2]
[357953056,1744614645955,-560.46429187,0.00019726,2]
[357953058,1744614645965,-500.0,0.00019726,2]
[357953060,1744614645975,-500.0,0.00019726,2]
[357953063,1744614645985,-500.0,0.00019726,2]
[357953064,1744614645995,-500.0,0.00019726,2]
[357953066,1744614646005,-500.0,0.00019726,2]
[357953069,1744614646016,-500.0,0.00019726,2]
[357953071,1744614646026,-500.0,0.00019726,2]
[357953072,1744614646037,-500.0,0.00019726,2]
[357953074,1744614646050,-500.0,0.00019726,2]
[357953076,1744614646059,-640.58777853,0.00019726,2]
[357953077,1744614646068,-185.92,0.00019726,2]
[357953078,1744614646078,-500.0,0.00019726,2]
[357953079,1744614646087,-500.0,0.00019726,2]
[357953080,1744614646096,-500.0,0.00019726,2]
[357953081,1744614646105,-500.0,0.00019726,2]
[357953082,1744614646114,-288.57300246,0.00019726,2]
[357953083,1744614646124,-241.22672973,0.00019726,2]
[357953084,1744614646133,-690.9,0.00019726,2]
[357953085,1744614646142,-500.0,0.00019726,2]
[357953086,1744614646150,-500.0,0.00019726,2]
[357953087,1744614646160,-500.0,0.00019726,2]
[357953088,1744614646169,-518.7,0.00019726,2]
[357953089,1744614646178,-500.0,0.00019726,2]
[357953090,1744614646188,-500.0,0.00019726,2]
[357953091,1744614646197,-498.6409019,0.00019726,2]
[357953092,1744614646206,-500.0,0.00019726,2]
[357953093,1744614646215,-648.48,0.00019726,2]
[357953095,1744614646224,-348.08251424,0.00019726,2]
[357953097,1744614646234,-817.72,0.00019726,2]
[357953099,1744614646243,-576.5,0.00019726,2]
[357953101,1744614646253,-500.0,0.00019726,2]
[357953103,1744614646262,-48521.41,0.00019726,2]
[357953105,1744614646272,-588.44,0.00019726,2]
[357953107,1744614646282,-186.70667889,0.00019726,2]
[357953109,1744614646291,-500.0,0.00019726,2]
[357953110,1744614646300,-1620.01,0.00019726,2]
[357953112,1744614646310,-500.0,0.00019726,2]
[357953115,1744614646325,-500.0,0.00019726,2]
[357953117,1744614646335,-500.0,0.00019726,2]
[357953118,1744614646344,-500.0,0.00019726,2]
[357953121,1744614646354,-500.0,0.00019726,2]
[357953122,1744614646363,-220.79,0.00019726,2]
[357953124,1744614646372,-500.0,0.00019726,2]
[357953127,1744614646382,-500.0,0.00019726,2]
[357953130,1744614646392,-500.0,0.00019726,2]
[357953132,1744614646404,-500.0,0.00019726,2]
[357953135,1744614646414,-500.0,0.00019726,2]
[357953138,1744614646423,-500.0,0.00019726,2]
[357953141,1744614646432,-500.0,0.00019726,2]
[357953143,1744614646443,-500.0,0.00019726,2]
[357953145,1744614646452,-1088.87,0.00019726,2]
[357953147,1744614646462,-500.0,0.00019726,2]
[357953150,1744614646473,-500.0,0.00019726,2]
[357953153,1744614646483,-500.0,0.00019726,2]
[357953155,1744614646492,-643.04300323,0.00019726,2]
[357953158,1744614646503,-500.0,0.00019726,2]
[357953161,1744614646513,-500.0,0.00019726,2]
[357953163,1744614646523,-500.0,0.00019726,2]
[357953165,1744614646532,-589.12,0.00019726,2]
[357953167,1744614646544,-500.0,0.00019726,2]
[357953169,1744614646554,-500.0,0.00019726,2]
[357953171,1744614646565,-500.0,0.00019726,2]
[357953172,1744614646575,-844.8,0.00019726,2]
[357953175,1744614646585,-500.0,0.00019726,2]
[357953177,1744614646596,-534.27,0.00019726,2]
[357953178,1744614646607,-500.0,0.00019726,2]
[357953180,1744614646617,-500.0,0.00019726,2]
[357953182,1744614646628,-626.93,0.00019726,2]
[357953184,1744614646638,-500.0,0.00019726,2]
[357953186,1744614646649,-713.21,0.00019726,2]
[357953188,1744614646665,-500.0,0.00019726,2]
[357953191,1744614646681,-575.06172482,0.00019726,2]
[357953192,1744614646696,-500.0,0.00019726,2]
[357953194,1744614646707,-500.0,0.00019726,2]
[357953196,1744614646716,-500.0,0.00019726,2]
[357953198,1744614646726,-500.0,0.00019726,2]
[357953200,1744614646736,-392.82779631,0.00019726,2]
[357953202,1744614646747,-500.0,0.00019726,2]
[357953204,1744614646758,-500.0,0.00019726,2]
[357953205,1744614646768,-1039.97765586,0.00019729,2]
[357953206,1744614646778,-1039.97765586,0.00019731,2]
[357953208,1744614646787,-3166.80184535,0.00019741,2]
[357953210,1744614646800,-1583.40092271,0.00019741,2]
[357953212,1744614646810,-1583.40092271,0.00019747,2]
[357953213,1744614646819,-181.60931761,0.00019763,2]
[357953214,1744614646829,-55538.35117381,0.00019763,2]
[357953215,1744614646838,-500.0,0.0001977,2]
[357953216,1744614646848,-13602.31332993,0.0001977,2]
[357953217,1744614646857,-13602.31332993,0.00019771,2]
[357953218,1744614646867,-500.0,0.00019773,2]
[357953219,1744614646877,-501.87989479,0.00019773,2]
[357953220,1744614646886,-500.0,0.00019773,2]